Cogmind - Beta 16 @@@ ROGUE MODE // 2025.11.23 @ 21:01:21 Player: btrs Result: Destroyed by G-47 Trooper with Particle Gun Performance ------------- Evolutions (0) 0 Regions Visited (2) 400 Robots Destroyed (33) 165 Value Destroyed (647) 647 Prototype IDs (0) 0 Alien Tech Used (0) 0 Bonus (0) 0 TOTAL SCORE: 1212 Bonus ------- None Cogmind --------- Core Integrity 0/250 Matter 235/300 Energy 160/160 System Corruption 1% Temperature Cool (10) Movement Walking (190) Ox1 Location -10/Mines Parts ------- > --- POWER (1) -------- Light Nuclear Core > --- PROPULSION (2) --- Aluminum Leg Aluminum Leg > --- UTILITY (2) ------ Large Storage Unit Utility Shielding > --- WEAPON (2) ------- Assault Rifle Assault Rifle > --- INVENTORY (15) --- Ion Engine Light Ion Engine Aluminum Leg Aluminum Leg Heat Sink Signal Interpreter Propulsion Shielding Tractor Beam EM Pulse Gun Mining Laser Peak State ------------ > --- POWER ------------ Light Nuclear Core > --- PROPULSION ------- Aluminum Leg Aluminum Leg > --- UTILITY ---------- Large Storage Unit Utility Shielding > --- WEAPON ----------- Assault Rifle Assault Rifle > --- INVENTORY -------- Light Ion Engine Aluminum Leg Aluminum Leg Heat Sink Signal Interpreter Propulsion Shielding Tractor Beam EM Pulse Gun Assault Rifle Mining Laser [Rating: 10] Favorites ----------- Power Ion Engine Engine Ion Engine Power Core Light Nuclear Core Propulsion Light Treads Treads Light Treads Leg Aluminum Leg Utility Large Storage Unit Storage Large Storage Unit Processor Visual Processing Unit Protection Utility Shielding Weapon Assault Rifle Ballistic Gun Assault Rifle Build | -11 -10 -10 ------- Run | Yrd Mat Min Slots Evolved . | . . . Power . | . . . Propulsion . | . . . Utility . | . . . Weapon . | . . . Parts Attached 22 | 6 8 8 Power 3 | 1 1 1 Engine 2 | 1 1 . Core 1 | . . 1 Reactor . | . . . Propulsion 6 | 2 1 3 Treads 4 | 2 1 1 Leg 2 | . . 2 Wheel . | . . . Hover . | . . . Flight . | . . . Utility 5 | 1 3 1 Device . | . . . Storage 2 | 1 1 . Processor 1 | . 1 . Hackware . | . . . Protection 2 | . 1 1 Artifact . | . . . Weapon 8 | 2 3 3 Energy Gun . | . . . Energy Cannon . | . . . Ballistic Gun 8 | 2 3 3 Ballistic Cannon . | . . . Launcher . | . . . Special Weapon . | . . . Impact Weapon . | . . . Slashing Weapon . | . . . Piercing Weapon . | . . . Special Melee Weapon . | . . . Unidentified Prototypes . | . . . Parts Lost 10 | . 3 7 Power 2 | . 1 1 Propulsion 4 | . 1 3 Utility . | . . . Weapon 4 | . 1 3 Highest Loss Streak 5 | . 2 5 To Critical Strikes . | . . . Average Backups 7 | . 7 7 Power . | . . . Propulsion . | . 1 1 Utility 1 | . . 2 Weapon 4 | . 5 4 Tool/Special . | . . . Unused Backups 7 | . . 7 Power . | . . . Propulsion 2 | . . 2 Utility 3 | . . 3 Weapon 2 | . . 2 Tool/Special . | . . . Average Slot Usage (%) 93 | . 93 93 Engine 12 | . 13 7 Treads 25 | . 28 15 Leg 2 | . . 8 Storage 14 | . 14 14 Processor 6 | . 6 3 Protection 3 | . . 10 Ballistic Gun 28 | . 28 28 Peak Build Rating 10 | 6 9 10 Average Rating 7 | 4 7 7 On Entrance 4 | . 6 8 Avg Prop Armor Cover (%) . | . . . Naked Turns . | . . . Heaviest Build 30 | 12 30 30 Greatest Support 40 | 40 40 40 Greatest Overweight (x) 8 | . . 8 Average Overweight (x) . | . . . Largest Inventory Capacity 15 | 8 15 15 Average Capacity 13 | 7 12 15 Most Carried 11 | 2 10 11 Average Carried 7 | . 7 7 Final Capacity 15 | 8 15 15 Final Carried 10 | 2 8 10 Class Distribution -------------------- 100% | Mutant Dominant Class ---------------- Mutant | -10/Materials Mutant | -10/Mines Resources | -11 -10 -10 ----------- Run | Yrd Mat Min Matter Collected 943 | 197 557 189 Remotely . | . . . Salvage Created 1053 | . 646 407 Parts 76 | . 58 18 Haulers Intercepted . | . . . Recyclers Shooed 3 | . 1 2 Parts Field Recycled . | . . . Retrieved Matter . | . . . Parts Self-Destructed . | . . . Prevented . | . . . Parts Restored . | . . . Kills | -11 -10 -10 ------- Run | Yrd Mat Min Combat Hostiles Destroyed 25 | . 21 4 Guns 25 | . 21 4 Classes Destroyed 6 | . 5 1 Worker 2 | . 2 . Tunneler 1 | . 1 . Recycler 3 | . . 3 Watcher 2 | . 2 . Swarmer 12 | . 12 . Grunt 13 | . 9 4 Best Kill Streak 8 | . 8 3 Combat Bots Only 8 | . 8 3 Max Kills in Single Turn 2 | . 2 1 Gunslinging . | . . . Exploded . | . . . Melee . | . . . Uniques/NPCs Destroyed . | . . . Combat | -11 -10 -10 -------- Run | Yrd Mat Min Hostile Shots Fired 193 | . 117 76 Missed 54 | . 33 21 Hits 139 | . 84 55 Projectile 139 | . 84 55 Critical Strikes 1 | . . 1 Damage Taken 1553 | . 802 751 Core 256 | . 159 97 Absorbed by Shields . | . . . Redirected to Shielding 14 | . . 14 Core Remaining (%) 100 | 100 . . Volleys Fired 102 | . 70 32 Largest 2 | . 2 2 Hottest 40 | . 40 40 Shots Fired 204 | . 140 64 Gun 204 | . 140 64 Cannon . | . . . Launcher . | . . . Special . | . . . Kinetic 204 | . 140 64 Thermal . | . . . Explosive . | . . . Electromagnetic . | . . . Robot Hit Streak 12 | . 12 8 Robot Miss Streak 4 | . 4 3 Penetration Max . | . . . Secondary Targets 5 | . 4 1 Max Gunslinging Chain 1 | . 1 1 Shots Hit Robots 114 | . 70 44 Core Hits 49 | . 34 15 Critical Kills . | . . . Critical Parts Destroyed . | . . . Critical Strikes . | . . . Melee Attacks . | . . . Impact . | . . . Slashing . | . . . Piercing . | . . . Sneak Attacks . | . . . Combat Hostiles . | . . . Follow-up Attacks . | . . . Damage Inflicted 1512 | . 916 596 Guns 1505 | . 909 596 Cannons . | . . . Explosions . | . . . Melee . | . . . Ramming 7 | . 7 . Kinetic 1505 | . 909 596 Thermal . | . . . Explosive . | . . . Electromagnetic . | . . . Impact . | . . . Slashing . | . . . Piercing . | . . . Highest Corruption 1 | . 1 1 Average Corruption 1 | . 1 1 Corruption Purged . | . . . Corruption Blocked . | . . . Effects 13 | . 12 1 Message Errors 4 | . 3 1 Matter Fused 3 | . 3 . Heat Flow Errors 1 | . 1 . Energy Discharges 2 | . 2 . Parts Fused 1 | . 1 . Data Loss (minor) 2 | . 2 . Overload Shots . | . . . Overflow Damage . | . . . Projectiles . | . . . Explosions . | . . . Melee . | . . . Knockbacks . | . . . Impact . | . . . Kinetic . | . . . Secondary . | . . . Self-Inflicted Damage . | . . . Shots . | . . . Rammed 1 | . 1 . Targets Rammed 1 | . 1 . Kicked . | . . . Crushed . | . . . Highest Temperature 234 | . 234 15 Average Temperature 41 | . 99 5 Received Heat Transfer 720 | . 270 450 Siege Activations . | . . . Martial Activations . | . . . Shielding Activations . | . . . Robots Disrupted . | . . . Combat Hostiles . | . . . Robots Corrupted . | . . . Combat Hostiles . | . . . Parts Fried . | . . . Impact Corruptions . | . . . Robots Melted . | . . . Combat Hostiles . | . . . Parts Melted . | . . . Heat Transferred . | . . . Parts Sabotaged . | . . . Parts Stolen . | . . . Parts Stripped . | . . . Power Chain Reactions . | . . . Alert | -11 -10 -10 ------- Run | Yrd Mat Min Maximum Alert Level 1 | . 1 . Low Security (%) 66 | 100 54 100 Level 1 33 | . 45 . Level 2 . | . . . Level 3 . | . . . Level 4 . | . . . Level 5 . | . . . High Security . | . . . Max Security . | . . . Peak Influence 346 | . 346 65 Initial 65 | . . 65 Average 141 | . 184 30 Influence Increases 707 | . 592 115 Destroy 0b10 Robot/C 500 | . 420 80 Destroy 0b10 Robot/NC 40 | . 25 15 Destroy Leader 104 | . 84 20 Select Force Hacks 30 | . 30 . Destroy Structure 3 | . 3 . Lose Combat Pursuer 30 | . 30 . Influence Decreases 702 | . 424 278 Entered New Map 103 | . . 103 Time Decay 539 | . 394 145 Lost Part 60 | . 30 30 Squads Dispatched 4 | . 4 . Investigation 3 | . 3 . Extermination . | . . . Reinforcement 1 | . 1 . Assault . | . . . Garrison . | . . . Intercept . | . . . Searches Triggered . | . . . Construction Impeded . | . . . Haulers Reinforced . | . . . Active Scanning Responses . | . . . Cargo Convoy Interrupts . | . . . Stealth | -11 -10 -10 --------- Run | Yrd Mat Min Distress Signals 1 | . 1 . Communications Jammed . | . . . Distress Signals . | . . . Times Spotted 37 | . 31 6 Peak Tracking Total 6 | . 6 4 Tactical Retreats 1 | . 1 . Traps | -11 -10 -10 ------- Run | Yrd Mat Min Traps Triggered 1 | . 1 . Indirectly . | . . . Trap Hack Attempts . | . . . Triggered . | . . . Disarmed . | . . . Reprogrammed . | . . . Reused . | . . . Traps Extracted . | . . . Installed . | . . . Triggered . | . . . Machines | -11 -10 -10 ---------- Run | Yrd Mat Min Machines Disabled . | . . . Max in Single Turn . | . . . Machines Repaired . | . . . Machines Dismantled . | . . . Machines Sabotaged . | . . . Overloaded Fab Kills . | . . . Hacking | -11 -10 -10 --------- Run | Yrd Mat Min Machines Accessed 3 | . 3 . Terminals 2 | . 2 . Fabricators . | . . . Repair Stations . | . . . Recycling Units 1 | . 1 . Scanalyzers . | . . . Garrison Access . | . . . Total Hacks 6 | . 6 . Successful 2 | . 2 . Failed 4 | . 4 . Catastrophic 2 | . 2 . Database Lockouts . | . . . Manual 1 | . 1 . Terminals 5 | . 5 . Fabricators . | . . . Repair Stations . | . . . Recycling Units 1 | . 1 . Scanalyzers . | . . . Garrison Access . | . . . Terminal Hacks 1 | . 1 . Branch Access Points 1 | . 1 . Fabricator Hacks . | . . . Repair Station Hacks . | . . . Recycling Unit Hacks . | . . . Scanalyzer . | . . . Garrison Access Hacks . | . . . Unauthorized Hacks 1 | . 1 . Terminals . | . . . Fabricators . | . . . Repair Stations . | . . . Recycling Units 1 | . 1 . Tunnel 1 | . 1 . Scanalyzers . | . . . Garrison Access . | . . . Data Cores Recovered . | . . . Used . | . . . Hacking Detections 2 | . 2 . Full Trace Events 1 | . 1 . Feedback Events 1 | . 1 . Corruption 1 | . 1 . Feedback Blocked . | . . . Robot Schematics Acquired . | . . . Robots Built . | . . . Authchips . | . . . Time . | . . . Total Robot Build Rating . | . . . Part Schematics Acquired . | . . . Parts Built . | . . . Authchips . | . . . Time . | . . . Total Part Build Rating . | . . . Part Studies Acquired . | . . . Parts Repaired . | . . . Time . | . . . Parts Recycled . | . . . Recycled Matter . | . . . Retrieved Matter . | . . . Retrieved Components . | . . . Parts Scanalyzed . | . . . Part Schematics Acquired . | . . . Parts Damaged . | . . . Bothacking | -11 -10 -10 ------------ Run | Yrd Mat Min Used RIF Installer . | . . . Robots Hacked . | . . . Non-combat . | . . . Combat . | . . . Robot Hacks Applied . | . . . Relay Couplers Released . | . . . Fabnet Peak Effective % . | . . . Robots Rewired . | . . . Allies Hacked . | . . . Hacks Repelled . | . . . Allies | -11 -10 -10 -------- Run | Yrd Mat Min Total Allies . | . . . Largest Group . | . . . Highest-Rated Group . | . . . Highest-Rated Ally . | . . . Total Orders . | . . . Ally Attacks . | . . . Total Damage . | . . . Kills . | . . . Allies Corrupted . | . . . Allies Melted . | . . . Intel | -11 -10 -10 ------- Run | Yrd Mat Min Active Infowar (turns) 649 | . 567 82 Optics 649 | . 567 82 Robot Analysis Total . | . . . Derelict Logs Recovered 1 | . . 1 Drone Launches . | . . . Drone Recoveries . | . . . Exploration | -11 -10 -10 ------------- Run | Yrd Mat Min Turns Passed 1591 | 81 1164 346 Spaces Moved 755 | 47 573 135 Core 6 | 4 . 2 Treads 716 | 43 573 100 Legs 33 | . . 33 Wheels . | . . . Hover . | . . . Flight . | . . . Fastest Speed 50 | 50 160 160 Average Speed 161 | 150 160 172 Slowest Speed 450 | 160 160 450 Overloaded Moves . | . . . Propulsion Burnouts . | . . . Robots Hopped . | . . . Potential Cave-ins . | . . . Cave-ins Triggered . | . . . Exploration Rate (%) 42 | 4 90 32 Regions Visited 2 Branch Regions 1 Pre-discovered Areas 1 | . 1 . Known Exits Taken 1 | . 1 . Unknown Exits Taken 1 | 1 . . Scrap Searched 2 | . . 2 Spaces Dug . | . . . Terrain Destroyed . | . . . Melee . | . . . Projectile . | . . . AOE . | . . . Terrain Rammed . | . . . Walls Destroyed . | . . . Machines Disabled . | . . . Actions | -11 -10 -10 --------- Run | Yrd Mat Min Total 919 | 54 683 182 Wait 19 | . 18 1 Move 753 | 46 572 135 Hop . | . . . Pick Up 17 | 2 9 6 Fast Attach 11 | 6 2 3 Attach 8 | . 4 4 Detach 2 | . 2 . Swap 3 | . 2 1 Drop 3 | . 3 . Fire 102 | . 70 32 Melee . | . . . Ram . | . . . Kick . | . . . Crush 1 | . 1 . Escape Stasis . | . . . Rewire . | . . . Trap . | . . . Miscellaneous . | . . . Route ------- -11/Scrapyard -10/Materials (discovered 3 exits: [*Mat x2] / *Min) -10/Mines History --------- Turn | Location | Event 32 | -11/Scrapyard | Discovered new exit (range 15) 82 | -11/Scrapyard | Entered Materials 322 | -10/Materials | Build established: Mutant 335 | -10/Materials | Destroyed 8 combat bots 363 | -10/Materials | Core integrity fell below 50% 476 | -10/Materials | Identified exit to Mines 568 | -10/Materials | Discovered new exit (range 15) 852 | -10/Materials | Discovered new exit (range 17) 982 | -10/Materials | Derelicts attacked the area 1246 | -10/Materials | Entered Mines 1458 | -10/Mines | Core integrity fell below 20% 1490 | -10/Mines | Lost 5 parts (1p2n2w) 1592 | -10/Mines | Destroyed by G-47 Trooper with Particle Gun Last Messages --------------- 01495_ K-01 Serf collects debris. 01497_ Acquired Aluminum Leg. 01499_ K-01 Serf collects debris. 01500_ Acquired 41 matter. 01503_ K-01 Serf collects debris. 01504_ Acquired Lgt. Nuclear Core. 01509_ Acquired Heat Sink. 01514_ Acquired Tractor Beam. 01519_ Acquired 103 matter. 01521_ R-06 Scavenger collects Com. Wheel. 01525_ Acquired 23 matter. 01540_ Acquired Lgt. Ion Engine. 01547_ Acquired Ion Engine. 01552_ R-06 Scavenger collects Sml. Storage Unit. 01554_ R-06 Scavenger destroyed. 01556_ R-06 Scavenger collects Lgt. Ion Engine. 01560_ R-06 Scavenger destroyed. 01565_ K-01 Serf collects debris. 01588_ Assault Rifle destroyed. Map ----- +----------------------------------------------------+ | #??????????????????????????????????? | | ##??????????????????????????????????? | | ####### ##???????????????????????????????????? | | ????## #????????????????????????????????????? | | ???## #????????????????????????????????????? | | ??## ##????????????????????????????????????? | | ?## #?????????????????????????????????????? | | ?# ##?????????????????????????????????????? | | ?# #####??????????????????????????????????????? | | ?## ##??????????????????????????????????????????? | | ??## #???????????????????????????????????????????? | | ???# #???????????????????????????????????????????? | | ???# ###???????????????? ????????????????????????? | | ???# #?????????????? ????????????????????????? | | ???## #####????????? ???????????????????????? | | ????# #?????????# #????????????????#?????? | | ????# ### #?????????# ##????????????? #?????? | | ????# #?# #??????????# #??????????? ##????? | | ????# #?#!#???####???# ##????????? ????? | | ????# #?#=#??## ###### ###?????? ?????? | | ????# #?#%#### ##???? ???????? | | ???## ###!! ##### #????????? | | ???# ######## #?????????? | | ##?????????# #?????????? | | """ ##%############# #?????????? | | """ ### k=*!@=*!g #??????????? | | """ #?#%% %%! [%=g ####??????????? | | #?############### ##?????????????? | | # #??????????????# #??????????????? | | ## ##??????????????# ##??????????????? | | ?## ##???????????????## ##???????????????? | | ??## #####?????????????????## #????????????????? | | ???###??????????????????##### #????????????????? | | ????????????????????????# ##????????????????? | | ??????????????????# ##?????????????????? | | ??????????????????# ##??????????????????? | | ?????????????????# ##???????????????????? | | ????????????????# ?????????????????????? | | ???????????????# ?????????????????????? | | ???????????????# #?????????????????????? | | ??????????????? #??????????????????????? | | ???????????????? ???????????????????????? | | ????????????????# ???????????????????????? | | ?????????????????### ????????????????????????? | | ???????????????????## ????????????????????????? | | ????????????????????## ????????????????????????? | | ?????????????????????###?????????????????????????? | | ?????????????????????????????????????????????????? | | ?????????????????????????????????????????????????? | | ?????????????????????????????????????????????????? | +----------------------------------------------------+ Best States ------------- Heat Dissipation 25 Energy Generation 14 Energy Capacity 250 Matter Stores 300 Matter Capacity 300 Sight Range 18 Terrain Scan Density 10 Propulsion Shielding 33 Utility Shielding 33 Evasion (%) 40 Recoil Reduction 2 Item Schematics ----------------- None Robot Schematics ------------------ None Fabricated ------------ Nothing Repaired ---------- Nothing Studied --------- None Alien Tech Used ----------------- None Achievements -------------- None Challenges ------------ None Game ------ Seed AssaultThunderBeam Manual? 0 Play Time 00:11:31 Cumulative 102.0 hours Start 2025.11.23 @ 20:51:50 End 2025.11.23 @ 21:01:21 Sessions 1 Manual Loads 0 Difficulty Rogue Special Mode None Game No. 70 Rogue 64 Adventurer 6 Explorer 0 Win Type - Total 3 Types 3/0/0/0/0/0/0/0/0/0 Lore% 41 Gallery% 44 Achievement% 31 Wizard Run 0 Options --------- Layout 2 ASCII 1 Keyboard 1 Movement Vi Keybinds 0 Fullscreen 1 Font 32/SmallcapsGlow Map View 50x44 Zoom Use 0% Tactical HUD 1 Map Filters NONE Filters NONE Steam 1 RUN: 8963c5f5-8bf3-4c38-88ce-a3c78886fd78